bitfinex-derivatives/quotes_BTCF0:USTF0_20250806
["timestamp","ask_amount","ask_price","bid_price","bid_amount"]
[1754498095961,0.59687192,115270.0,115250.0,0.1547658]
[1754498096152,0.3036226,115270.0,115260.0,0.1735011]
[1754498096359,0.9033826,115270.0,115260.0,0.1735011]
[1754498097067,0.8610083,115270.0,115260.0,0.1735011]
[1754498097365,1.24100622,115270.0,115260.0,0.1735011]
[1754498098164,1.24200622,115270.0,115260.0,0.1735011]
[1754498098364,1.19863192,115270.0,115260.0,0.1735011]
[1754498098565,1.19863192,115270.0,115260.0,0.1981311]
[1754498099166,0.98175792,115270.0,115260.0,0.1981311]
[1754498099366,1.15524392,115270.0,115260.0,0.1981311]
[1754498100066,0.98175792,115270.0,115260.0,0.1981311]
[1754498100567,0.775246,115270.0,115260.0,0.1981311]
[1754498100867,1.15524392,115270.0,115260.0,0.1981311]
[1754498101167,1.15624392,115270.0,115260.0,0.1981311]
[1754498102268,0.776246,115270.0,115260.0,0.1981311]
[1754498102468,1.15624392,115270.0,115260.0,0.1981311]
[1754498102667,1.15624392,115270.0,115260.0,0.173501]
[1754498103765,0.173501,115260.0,115250.0,0.2848928]
[1754498103967,0.55349892,115260.0,115250.0,0.2848928]
[1754498105068,0.55449892,115260.0,115250.0,0.2848928]
[1754498106769,0.55449892,115260.0,115250.0,0.3057628]
[1754498107068,0.55449892,115260.0,115250.0,0.3540028]
[1754498107270,0.174501,115260.0,115250.0,0.3540028]
[1754498107471,0.55449892,115260.0,115250.0,0.3540028]
[1754498108870,0.55449892,115260.0,115250.0,0.3768428]
[1754498109270,0.55449892,115260.0,115250.0,0.3920128]
[1754498109570,0.38099792,115260.0,115250.0,0.3920128]
[1754498109975,0.001,115260.0,115250.0,0.3920128]
[1754498110672,0.38099792,115260.0,115250.0,0.3920128]
[1754498110872,0.55449892,115260.0,115250.0,0.3920128]
[1754498111173,0.55449892,115260.0,115250.0,0.3052556]
[1754498111579,0.38099792,115260.0,115250.0,0.3052556]
[1754498112874,0.55449892,115260.0,115250.0,0.3052556]
[1754498113273,0.38099792,115260.0,115250.0,0.3052556]
[1754498114174,0.001,115260.0,115250.0,0.3052556]
[1754498114373,0.38099792,115260.0,115250.0,0.3052556]
[1754498116876,0.55449892,115260.0,115250.0,0.3052556]
[1754498122878,0.55449892,115260.0,115250.0,0.06273]
[1754498123181,0.55449892,115260.0,115250.0,0.236246]
[1754498123477,0.55449892,115260.0,115250.0,0.305626]
[1754498123986,0.55449892,115260.0,115250.0,0.13211]
[1754498124181,0.55449892,115260.0,115250.0,0.3056261]
[1754498124376,0.55449892,115260.0,115250.0,0.13211]
[1754498125177,0.2602795,115250.0,115240.0,0.2620717]
[1754498125479,1.24019742,115250.0,115240.0,0.3453017]
[1754498126086,1.24019742,115250.0,115240.0,0.301919]
[1754498126279,1.24019742,115250.0,115240.0,0.12839]
[1754498126878,1.24019742,115250.0,115240.0,0.3019211]
[1754498127477,1.24019742,115250.0,115240.0,0.3029211]
[1754498128587,1.24119742,115250.0,115240.0,0.3019211]
[1754498130586,1.19781512,115250.0,115240.0,0.3019211]
[1754498130786,1.19781512,115250.0,115210.0,0.94501365]
[1754498130787,0.1735539,115230.0,115220.0,0.2679266]
[1754498130981,1.15382402,115230.0,115220.0,0.3453366]
[1754498131986,1.15382402,115230.0,115220.0,0.3463366]
[1754498132888,1.15382402,115230.0,115220.0,0.3483366]
[1754498133887,1.16398148,115230.0,115220.0,0.3483366]
[1754498134086,1.16398148,115230.0,115220.0,0.3463366]
[1754498134292,0.99143538,115230.0,115220.0,0.3453366]
[1754498134683,1.16498148,115230.0,115220.0,0.3453366]
[1754498135486,0.99143538,115230.0,115220.0,0.3453366]
[1754498135686,0.01115746,115230.0,115220.0,0.72533452]
[1754498135990,0.601,115230.0,115220.0,0.72533452]
[1754498136392,0.61111662,115230.0,115220.0,0.72533452]
[1754498136585,0.61111662,115230.0,115220.0,0.3453366]
[1754498136788,0.99111454,115230.0,115220.0,0.3453366]
[1754498137189,0.99011454,115230.0,115220.0,0.3453366]
[1754498137389,0.61011662,115230.0,115220.0,0.3463366]
[1754498138390,0.61111662,115230.0,115220.0,0.3453366]
[1754498138999,0.99011454,115230.0,115220.0,0.3463366]
[1754498139384,1.16366064,115230.0,115220.0,0.3463366]
[1754498139687,0.99011454,115230.0,115220.0,0.3463366]
[1754498140090,0.61011662,115230.0,115220.0,0.3463366]
[1754498141190,0.61111662,115230.0,115220.0,0.3453366]
[1754498141392,0.01111662,115230.0,115220.0,0.3453366]
[1754498141595,0.61115662,115230.0,115220.0,0.3453366]
[1754498142597,0.61115662,115230.0,115220.0,0.72533452]
[1754498143684,0.61015662,115230.0,115220.0,0.3463366]
[1754498146695,0.61015662,115230.0,115220.0,0.72633452]
[1754498146994,0.61015662,115230.0,115220.0,0.3463366]
[1754498148194,0.60004,115230.0,115220.0,0.3463366]
[1754498148498,0.69381484,115260.0,115250.0,0.197616]
[1754498148797,1.25047664,115260.0,115250.0,0.197616]
[1754498149298,1.16370804,115260.0,115250.0,0.303486]
[1754498149686,1.16570804,115260.0,115250.0,0.303486]
[1754498150196,1.16870804,115260.0,115250.0,0.303486]
[1754498151897,1.16770804,115260.0,115250.0,0.303486]
[1754498152096,1.16670804,115260.0,115250.0,0.303486]
[1754498153197,1.16670804,115260.0,115250.0,0.212366]
[1754498153599,1.16670804,115260.0,115250.0,0.0241]
[1754498154502,0.1735159,115250.0,115240.0,0.3277614]
[1754498154797,0.55351382,115250.0,115240.0,0.4336314]
[1754498155002,0.37999792,115250.0,115240.0,0.4336314]
[1754498156298,0.37999792,115250.0,115230.0,0.2557762]
[1754498156599,0.001,115250.0,115240.0,0.2410131]
[1754498156802,0.98099792,115250.0,115240.0,0.2776631]
[1754498157101,0.98099792,115250.0,115240.0,0.3468831]
[1754498158903,1.15451392,115250.0,115240.0,0.12997]
[1754498159207,1.15551392,115250.0,115240.0,0.12997]
[1754498159502,1.15551392,115250.0,115240.0,0.303501]
[1754498159805,1.15451392,115250.0,115240.0,0.303501]
[1754498160003,1.15651392,115250.0,115240.0,0.303501]
[1754498160192,0.98299792,115250.0,115240.0,0.303501]
[1754498160698,0.2603016,115240.0,115220.0,0.2410387]
[1754498160906,0.97999792,115230.0,115220.0,0.2410387]
[1754498161299,0.97999792,115230.0,115220.0,0.2629387]
[1754498161805,1.15354402,115230.0,115220.0,0.0241]
[1754498162099,0.6,115230.0,115220.0,0.1976611]
[1754498162295,0.97999792,115230.0,115220.0,0.1976611]
[1754498162806,0.97999792,115230.0,115220.0,0.2663111]
[1754498163004,0.97999792,115230.0,115220.0,0.2673111]
[1754498164004,1.15354402,115230.0,115220.0,0.2673111]
[1754498164205,1.15354402,115230.0,115220.0,0.2134111]
[1754498164506,0.97999792,115230.0,115220.0,0.2134111]
[1754498164807,0.97999792,115230.0,115220.0,0.2673111]
[1754498165002,0.97999792,115230.0,115220.0,0.2888611]
[1754498165198,0.98099792,115230.0,115220.0,0.3035311]
[1754498165905,0.38099792,115230.0,115220.0,0.3035311]
[1754498166105,0.98095792,115230.0,115220.0,0.3035311]
[1754498176807,1.15450422,115230.0,115220.0,0.0241]
[1754498177512,1.15450422,115230.0,115220.0,0.1976616]
[1754498177708,1.15450422,115230.0,115220.0,0.2182116]
[1754498178012,1.15450422,115230.0,115220.0,0.2647116]
[1754498178209,1.15450422,115230.0,115220.0,0.09115]
[1754498178405,1.15450422,115230.0,115220.0,0.03788]
[1754498178605,1.15450422,115230.0,115220.0,0.0241]
[1754498179515,1.15450422,115230.0,115220.0,0.1976618]
[1754498179814,1.15450422,115230.0,115220.0,0.0241]
[1754498180014,1.15450422,115230.0,115220.0,0.1976618]
[1754498180216,1.15450422,115230.0,115220.0,0.2319918]
[1754498180413,0.98095792,115230.0,115220.0,0.3040318]
[1754498181404,1.15450472,115230.0,115220.0,0.13047]
[1754498181609,1.15450472,115230.0,115220.0,0.2114418]
[1754498182309,1.15450472,115230.0,115220.0,0.2319918]
[1754498182510,1.15450472,115230.0,115220.0,0.2647118]
[1754498183017,1.15450472,115230.0,115220.0,0.2878418]
[1754498184814,1.15450472,115230.0,115220.0,0.11428]
[1754498185015,1.15450472,115230.0,115220.0,0.2878437]
[1754498186220,1.15450472,115230.0,115220.0,0.2878438]
[1754498186721,1.15450472,115230.0,115220.0,0.3040338]
[1754498187821,1.15450472,115230.0,115220.0,0.0772]
[1754498188020,1.15450472,115230.0,115220.0,0.03788]
[1754498189719,1.15450472,115230.0,115220.0,0.2114438]
[1754498189922,1.15450472,115230.0,115220.0,0.2319938]
[1754498190119,1.15450662,115230.0,115220.0,0.3040338]
[1754498192223,0.7745087,115230.0,115220.0,0.3040338]
[1754498192423,0.98095792,115230.0,115220.0,0.3040338]
[1754498193018,1.15450672,115230.0,115220.0,0.3040338]
[1754498193223,0.60096,115230.0,115220.0,0.3040338]
[1754498193422,0.98095792,115230.0,115220.0,0.3040338]
[1754498194717,0.38099792,115230.0,115220.0,0.3040338]
[1754498194921,1.59072714,115260.0,115250.0,0.1735186]
[1754498195117,2.19056714,115260.0,115250.0,0.2493686]
[1754498195317,2.19056714,115260.0,115250.0,0.3026386]
[1754498195516,2.36407064,115260.0,115250.0,0.12912]
[1754498195719,2.36407064,115260.0,115250.0,0.02275]
[1754498195919,0.2602803,115250.0,115230.0,0.05966]
[1754498196226,0.97983792,115240.0,115230.0,0.05708]
[1754498196432,0.97983792,115240.0,115230.0,0.0898]
[1754498196722,0.97983792,115240.0,115230.0,0.3026686]
[1754498196921,0.97983792,115240.0,115230.0,0.3036686]
[1754498197123,0.97983792,115240.0,115230.0,0.2303986]
[1754498197321,0.71758973,115240.0,115230.0,0.001]
[1754498197622,2.23699527,115240.0,115210.0,0.3200274]
[1754498197823,0.55616122,115220.0,115210.0,0.05866]
[1754498198018,1.18348122,115220.0,115210.0,0.05866]
[1754498198218,1.18348122,115220.0,115210.0,0.11193]
[1754498200526,1.18648122,115220.0,115210.0,0.11193]
[1754498201526,1.18748122,115220.0,115210.0,0.2855087]
[1754498201714,1.18748122,115220.0,115210.0,0.11193]
[1754498201914,1.18748122,115220.0,115210.0,0.2855087]
[1754498205522,1.18748122,115220.0,115210.0,0.3016987]
[1754498206426,1.18748122,115220.0,115210.0,0.12812]
[1754498210827,1.01391792,115220.0,115210.0,0.3016982]
[1754498211024,0.63292,115220.0,115210.0,0.3016982]
[1754498211618,0.004,115220.0,115210.0,0.3016982]
[1754498211821,0.62856,115220.0,115210.0,0.3016982]
[1754498212830,0.62556,115220.0,115210.0,0.3016982]
[1754498213926,0.62456,115220.0,115210.0,0.3016982]
[1754498215632,0.7981231,115220.0,115210.0,0.3016982]
[1754498216331,0.62616,115220.0,115210.0,0.3016982]
[1754498216830,0.799723,115220.0,115210.0,0.3016982]
[1754498217434,0.62616,115220.0,115210.0,0.3016982]
[1754498219534,1.3740682,115230.0,115220.0,0.3024033]
[1754498219837,1.82344,115230.0,115220.0,0.3024033]
[1754498220023,1.20052,115230.0,115220.0,0.68240122]
[1754498220433,1.82308,115230.0,115220.0,0.68240122]
[1754498221536,1.82308,115230.0,115220.0,0.68340122]
[1754498221728,0.62256,115230.0,115220.0,0.68340122]
[1754498223635,0.62456,115230.0,115220.0,0.68340122]
[1754498224336,0.62256,115230.0,115220.0,0.68340122]
[1754498224638,0.62256,115230.0,115220.0,0.68440122]
[1754498224843,0.62256,115230.0,115220.0,0.3044033]
[1754498225028,1.17770632,115230.0,115220.0,0.2723033]
[1754498225230,1.17870632,115230.0,115220.0,0.2723033]
[1754498225535,1.17870632,115230.0,115220.0,0.3044033]
[1754498225728,1.17770632,115230.0,115220.0,0.2723033]
[1754498225931,1.17870632,115230.0,115220.0,0.3044033]
[1754498226541,0.7987084,115230.0,115220.0,0.3044033]
[1754498226725,1.17870632,115230.0,115220.0,0.3044033]
[1754498227433,1.17870632,115230.0,115220.0,0.2003233]
[1754498228337,1.00515792,115230.0,115220.0,0.2003233]
[1754498229739,0.62416,115230.0,115220.0,0.3038433]
[1754498231036,1.00515792,115230.0,115220.0,0.2002633]
[1754498232138,1.17870552,115230.0,115220.0,0.2002633]
[1754498232339,1.00515792,115230.0,115220.0,0.2002633]
[1754498232942,1.00515792,115230.0,115220.0,0.2208333]
[1754498233240,1.17870552,115230.0,115220.0,0.2208333]
[1754498233936,1.00515792,115230.0,115220.0,0.2208333]
[1754498234537,1.00515792,115230.0,115220.0,0.2338133]
[1754498234739,0.38259792,115230.0,115220.0,0.3021333]
[1754498234936,1.00139792,115230.0,115220.0,0.3021333]
[1754498236041,1.00239792,115230.0,115220.0,0.3021333]
[1754498236342,1.17594552,115230.0,115220.0,0.3021333]
[1754498236544,1.17594552,115230.0,115220.0,0.2548833]
[1754498237544,1.17594552,115230.0,115220.0,0.2869433]
[1754498238140,1.00239792,115230.0,115220.0,0.2869433]
[1754498238547,1.00239792,115230.0,115220.0,0.3021333]
[1754498242047,0.6214,115230.0,115220.0,0.3021333]
[1754498243248,1.20044,115240.0,115230.0,0.3001174]
[1754498243449,1.81868,115240.0,115230.0,0.3001174]
[1754498244052,2.37321032,115240.0,115230.0,0.3001174]
[1754498246344,2.37321032,115240.0,115230.0,0.2112274]
[1754498246551,0.0026,115230.0,115220.0,0.3435068]
[1754498246850,0.55614532,115230.0,115220.0,0.2546168]
[1754498247045,0.38259792,115230.0,115220.0,0.1982624]
[1754498247246,0.0016,115220.0,115210.0,0.41308632]
[1754498247447,1.00003792,115220.0,115210.0,0.45648052]
[1754498248454,1.00003792,115220.0,115210.0,0.45848052]
[1754498249052,1.00003792,115220.0,115210.0,0.3889241]
[1754498249455,0.62004,115220.0,115210.0,0.3889241]
[1754498249748,0.61904,115220.0,115210.0,0.3889241]
[1754498250151,0.61904,115220.0,115210.0,0.3909241]
[1754498253049,1.58043792,115240.0,115230.0,0.2474874]
[1754498253252,2.19795792,115240.0,115230.0,0.3001174]
[1754498253453,1.81796,115240.0,115230.0,0.3001174]
[1754498253656,1.81696,115240.0,115230.0,0.3001174]
[1754498253954,2.19695792,115240.0,115230.0,0.3001174]
[1754498254348,2.19795792,115240.0,115230.0,0.3001174]
[1754498254746,2.19695792,115240.0,115230.0,0.3001174]
[1754498255554,2.19795792,115240.0,115230.0,0.3001174]
[1754498259859,1.81796,115240.0,115230.0,0.3001174]
[1754498260255,2.19795792,115240.0,115230.0,0.3001174]
[1754498263263,2.37149022,115240.0,115230.0,0.3001174]
[1754498264668,2.19795792,115240.0,115230.0,0.3001174]
[1754498264864,2.37149022,115240.0,115230.0,0.3001174]
[1754498265054,0.0016,115230.0,115220.0,0.1864634]
[1754498265254,0.55614532,115230.0,115220.0,0.3183229]
[1754498265454,0.55614532,115230.0,115220.0,0.2749331]
[1754498265760,0.55614532,115230.0,115220.0,0.2315434]
[1754498266263,0.55614532,115230.0,115220.0,0.2335434]
[1754498266664,0.55614532,115230.0,115220.0,0.002]
[1754498266868,0.55614532,115230.0,115220.0,0.02572]
[1754498267164,0.55614532,115230.0,115220.0,0.002]
[1754498267569,0.55614532,115230.0,115220.0,0.02572]
[1754498267765,0.55614532,115230.0,115220.0,0.002]
[1754498271567,0.55614532,115230.0,115220.0,0.02572]
[1754498274473,0.55614702,115230.0,115220.0,0.2189542]
[1754498274771,0.55614702,115230.0,115220.0,0.2318642]
[1754498276670,0.55614702,115230.0,115220.0,0.2646242]
[1754498277172,0.55614702,115230.0,115220.0,0.09106]
[1754498277372,0.55614702,115230.0,115220.0,0.02572]
[1754498286173,0.55614702,115230.0,115220.0,0.002]
[1754498287277,0.1735792,115210.0,115200.0,0.04339]
[1754498287483,1.16621712,115210.0,115200.0,0.2840143]
[1754498287783,0.99263792,115210.0,115200.0,0.2990343]
[1754498288375,0.99163792,115210.0,115200.0,0.3030343]
[1754498288677,0.99163792,115210.0,115200.0,0.3060343]
[1754498288878,0.99163792,115210.0,115200.0,0.3020343]
[1754498289084,0.99163792,115210.0,115200.0,0.3030343]
[1754498289085,1.0012389,115210.0,115200.0,0.3030343]
[1754498290384,1.0012389,115210.0,115200.0,0.3000343]
[1754498290678,1.0012389,115210.0,115200.0,0.3010343]
[1754498293386,1.0022389,115210.0,115200.0,0.3010343]
[1754498294387,1.0012389,115210.0,115200.0,0.3010343]
[1754498296790,0.00960098,115210.0,115200.0,0.68103222]
[1754498296983,0.60864,115210.0,115200.0,0.3010343]
[1754498299189,0.61995687,115210.0,115200.0,0.3010343]
[1754498303790,0.99995479,115210.0,115200.0,0.2314443]
[1754498303990,1.00095479,115210.0,115200.0,0.2845843]
[1754498304294,1.00095479,115210.0,115200.0,0.3006743]
[1754498304494,1.17453469,115210.0,115200.0,0.2634543]
[1754498304690,1.17453469,115210.0,115200.0,0.2846143]
[1754498304891,1.17453469,115210.0,115200.0,0.3007043]
[1754498305095,1.00095479,115210.0,115200.0,0.3007043]
[1754498306184,0.99995479,115210.0,115200.0,0.2687243]
[1754498306388,0.99995479,115210.0,115200.0,0.1993143]
[1754498306389,1.17453469,115210.0,115200.0,0.1993143]
[1754498307496,1.00095479,115210.0,115200.0,0.1993143]
[1754498308494,1.00095479,115210.0,115200.0,0.2185343]
[1754498308690,1.00095479,115210.0,115200.0,0.2314743]
[1754498309102,1.17453469,115210.0,115200.0,0.2314743]
[1754498309393,1.17453469,115210.0,115200.0,0.002]
[1754498315002,1.17453469,115210.0,115200.0,0.02602]
[1754498320304,1.99537677,115210.0,115200.0,0.02602]
[1754498320499,2.37537469,115210.0,115200.0,0.02602]
[1754498332608,2.37537469,115210.0,115190.0,0.2489915]
[1754498332813,0.59372292,115200.0,115190.0,0.2957015]
[1754498333215,0.59372292,115200.0,115190.0,0.2522992]
[1754498333615,0.59372292,115200.0,115190.0,0.2542992]
[1754498334508,0.59372292,115200.0,115190.0,0.2562992]
[1754498334706,1.06890434,115200.0,115190.0,0.2992992]
[1754498335215,1.06890434,115200.0,115190.0,0.12469]
[1754498336614,1.06890434,115200.0,115170.0,0.2604441]
[1754498336615,0.3893021,115180.0,115170.0,0.02434]
[1754498336803,0.3459167,115170.0,115160.0,0.07581]
[1754498337114,1.20109604,115170.0,115160.0,0.07581]
[1754498338713,0.72623034,115170.0,115160.0,0.07581]
[1754498339309,0.1736553,115160.0,115150.0,0.3631299]
[1754498339515,1.24448894,115160.0,115150.0,0.3440525]
[1754498339917,1.07083364,115160.0,115150.0,0.3440525]
[1754498340211,1.24448894,115160.0,115150.0,0.3440525]
[1754498340513,1.24448894,115160.0,115150.0,0.3450525]
[1754498340514,1.07083364,115160.0,115150.0,0.3450525]
[1754498340711,1.07083364,115160.0,115150.0,0.41425619]
[1754498341619,0.69052,115160.0,115150.0,0.41425619]
[1754498341821,0.8641752,115160.0,115150.0,0.41425619]
[1754498342316,1.24448884,115160.0,115150.0,0.3450525]
[1754498346625,0.8641752,115160.0,115150.0,0.3450525]
[1754498347019,1.24448884,115160.0,115150.0,0.3450525]
[1754498347422,1.07083364,115160.0,115150.0,0.3450525]
[1754498348126,1.24448894,115160.0,115150.0,0.3450525]
[1754498349822,0.3445985,115150.0,115140.0,0.262605]
[1754498350020,0.72491214,115150.0,115140.0,0.262605]
[1754498350421,0.68149284,115150.0,115140.0,0.262605]
[1754498350623,0.68916,115150.0,115140.0,0.300235]
[1754498351219,0.8628304,115150.0,115140.0,0.300235]
[1754498351527,1.25268376,115150.0,115140.0,0.300235]
[1754498352224,1.25468376,115150.0,115140.0,0.300235]
[1754498352426,1.08101336,115150.0,115140.0,0.300235]
[1754498352626,1.08201336,115150.0,115140.0,0.300235]
[1754498352822,0.70169972,115150.0,115140.0,0.300235]
[1754498353027,1.25568366,115150.0,115140.0,0.300235]
[1754498353226,1.08201336,115150.0,115140.0,0.300235]
[1754498353627,1.25568366,115150.0,115140.0,0.224035]
[1754498353823,1.25568366,115150.0,115140.0,0.12656]
[1754498355530,1.25568366,115150.0,115140.0,0.3002454]
[1754498355832,0.47693336,115150.0,115140.0,0.3002454]
[1754498356028,1.08861336,115150.0,115140.0,0.1736854]
[1754498356234,1.26228366,115150.0,115140.0,0.1736854]
[1754498356642,0.70829972,115150.0,115140.0,0.3002454]
[1754498356832,0.47693336,115150.0,115140.0,0.3002454]
[1754498357024,0.07085972,115150.0,115140.0,0.3002454]
[1754498357228,0.70508972,115150.0,115140.0,0.3002454]
[1754498357431,0.70817972,115150.0,115140.0,0.3002454]
[1754498357940,1.08849336,115150.0,115140.0,0.3002454]
[1754498359036,0.70817972,115150.0,115140.0,0.3002454]
[1754498359234,1.08849336,115150.0,115140.0,0.3002454]
[1754498359831,0.47693336,115150.0,115140.0,0.3002454]
[1754498360134,1.08801336,115150.0,115140.0,0.3002454]
[1754498360537,0.66678972,115150.0,115140.0,0.3002454]
[1754498360733,0.68193972,115150.0,115140.0,0.3002454]
[1754498360934,0.70769972,115150.0,115140.0,0.3002454]
[1754498361133,1.08801336,115150.0,115140.0,0.3002454]
[1754498362836,1.08801336,115150.0,115140.0,0.2074454]
[1754498363037,1.08801336,115150.0,115140.0,0.3002454]
[1754498364933,1.26168366,115150.0,115140.0,0.2074454]
[1754498365139,1.26168366,115150.0,115140.0,0.1736854]
[1754498365736,0.70769972,115150.0,115140.0,0.3002454]
[1754498365940,1.08801336,115150.0,115140.0,0.3002454]
[1754498366343,1.26168366,115150.0,115140.0,0.3002454]
[1754498366842,1.26168366,115150.0,115140.0,0.1864154]
[1754498368243,1.26168366,115150.0,115140.0,0.1736854]
[1754498368443,1.08801336,115150.0,115140.0,0.1736854]
[1754498369040,1.26168376,115150.0,115140.0,0.1736854]
[1754498370045,1.08801336,115150.0,115140.0,0.1736854]
[1754498370245,1.26168366,115150.0,115140.0,0.1736854]
[1754498370745,1.08801336,115150.0,115140.0,0.1736854]
[1754498371439,1.08801336,115150.0,115140.0,0.3002454]
[1754498371837,0.70769972,115150.0,115140.0,0.3002454]
[1754498372041,1.08801336,115150.0,115140.0,0.3002454]
[1754498372245,0.70629972,115150.0,115140.0,0.3002454]
[1754498372540,0.68057972,115150.0,115140.0,0.68055904]
[1754498372746,0.61268,115150.0,115140.0,1.15425504]
[1754498373747,0.08408,115170.0,115160.0,0.2240153]
[1754498373947,0.08408,115170.0,115160.0,0.68052894]
[1754498374141,0.2577023,115190.0,115180.0,0.3001851]
[1754498374453,0.69404,115190.0,115180.0,0.3001851]
[1754498374637,0.08408,115190.0,115180.0,0.3001851]
[1754498374836,0.69424,115190.0,115180.0,0.3001851]
[1754498375048,0.7036326,115190.0,115180.0,0.3001851]
[1754498375746,0.7036326,115190.0,115180.0,0.68049874]
[1754498375747,0.6360226,115190.0,115180.0,0.68049874]
[1754498376246,0.6511726,115190.0,115180.0,0.68049874]
[1754498376442,0.6738426,115190.0,115180.0,0.3001851]
[1754498376642,0.0279426,115190.0,115180.0,0.68049874]
[1754498376842,0.002,115190.0,115180.0,0.85413074]
[1754498377043,0.002,115190.0,115180.0,1.15413074]
[1754498377239,0.61184,115190.0,115180.0,1.15413074]
[1754498377445,0.60984,115190.0,115180.0,1.15413074]
[1754498378046,0.60984,115190.0,115180.0,0.7738171]
[1754498378249,0.60984,115190.0,115180.0,1.15413074]
[1754498379454,0.60984,115190.0,115180.0,0.4738171]
[1754498379751,0.69392,115190.0,115180.0,0.3001851]
[1754498380857,0.69492,115190.0,115180.0,0.3001851]
[1754498381052,0.69592,115190.0,115180.0,0.3001851]
[1754498384749,1.24984404,115190.0,115180.0,0.3001851]
[1754498384950,1.24984404,115190.0,115180.0,0.1736251]
[1754498388560,0.69592,115190.0,115180.0,0.1736251]
[1754498388864,1.07623364,115190.0,115180.0,0.1736251]
[1754498390761,1.07623364,115190.0,115180.0,0.1860651]
[1754498390957,1.07623364,115190.0,115180.0,0.2828151]
[1754498391259,1.07623364,115190.0,115180.0,0.2986151]
[1754498391456,1.07623364,115190.0,115180.0,0.2805951]
[1754498391658,1.07623364,115190.0,115180.0,0.2647951]
[1754498391959,1.24984404,115190.0,115180.0,0.1736251]
[1754498392560,1.07623364,115190.0,115180.0,0.1736251]
[1754498394567,0.69592,115190.0,115180.0,0.1736251]
[1754498394767,1.07623364,115190.0,115180.0,0.1736251]
[1754498396568,1.07623364,115190.0,115180.0,0.1860651]
[1754498396866,1.07623364,115190.0,115180.0,0.2828151]
[1754498397366,1.07623364,115190.0,115180.0,0.2986151]
[1754498401571,0.46639364,115190.0,115180.0,0.2986151]
[1754498401773,0.69344,115190.0,115180.0,0.2986151]
[1754498402568,1.07375364,115190.0,115180.0,0.2986151]
[1754498402769,1.07552364,115190.0,115180.0,0.2986151]
[1754498405173,0.08785,115190.0,115180.0,0.2986151]
[1754498405367,0.69461,115190.0,115180.0,0.2986151]
[1754498406864,0.69413,115190.0,115180.0,0.2986151]
[1754498407373,0.002,115190.0,115180.0,0.67892874]
[1754498407569,0.08462,115210.0,115200.0,0.2560053]
[1754498407873,1.07109364,115210.0,115200.0,0.2985853]
[1754498408975,1.07409364,115210.0,115200.0,0.2985853]
[1754498409278,1.08338034,115210.0,115200.0,0.2985853]
[1754498410563,0.7030667,115210.0,115200.0,0.2985853]
[1754498410767,1.08338034,115210.0,115200.0,0.2985853]
[1754498410977,1.08538034,115210.0,115200.0,0.2985853]
[1754498416876,0.7050667,115210.0,115200.0,0.2985853]
[1754498417578,1.08538034,115210.0,115200.0,0.2985853]
[1754498419685,1.08338034,115210.0,115200.0,0.2985853]
[1754498419876,1.08438034,115210.0,115200.0,0.2985853]
[1754498420181,1.08338034,115210.0,115200.0,0.2985853]
[1754498423788,0.7030667,115210.0,115200.0,0.2985853]
[1754498423988,1.08338034,115210.0,115200.0,0.2985853]
[1754498424286,1.08097034,115210.0,115200.0,0.2234153]
[1754498424486,0.7021267,115210.0,115200.0,0.2995353]
[1754498424687,1.08228034,115210.0,115200.0,0.2995353]
[1754498425888,1.08128034,115210.0,115200.0,0.2995353]
[1754498426089,1.07928034,115210.0,115200.0,0.2995353]
[1754498426292,1.08028034,115210.0,115200.0,0.2995353]
[1754498426484,0.6999667,115210.0,115200.0,0.2995353]
[1754498427792,0.6999667,115210.0,115200.0,0.67984894]
[1754498428094,0.6999667,115210.0,115200.0,0.2995353]
[1754498428679,0.6989667,115210.0,115200.0,0.2995353]
[1754498428883,0.6999667,115210.0,115200.0,0.2995353]
[1754498429498,1.08028034,115210.0,115200.0,0.2995353]
[1754498429693,1.08028034,115210.0,115200.0,0.1735953]
[1754498430295,1.07928034,115210.0,115200.0,0.1735953]
[1754498430494,1.08128034,115210.0,115200.0,0.1735953]
[1754498430894,1.08128034,115210.0,115200.0,0.1982553]
[1754498432398,1.08228034,115210.0,115200.0,0.1982553]
[1754498433602,1.08228034,115210.0,115200.0,0.2433353]
[1754498434099,1.08228034,115210.0,115200.0,0.2616553]
[1754498435003,1.08228034,115210.0,115200.0,0.1735953]
[1754498435299,0.2538554,115200.0,115190.0,0.3037985]
[1754498435496,0.63416904,115200.0,115190.0,0.3037985]
[1754498435804,0.63416904,115200.0,115190.0,0.2169972]
[1754498436004,1.01448268,115200.0,115190.0,0.1735979]
[1754498436600,1.01548268,115200.0,115190.0,0.1735979]
[1754498437001,0.08026,115190.0,115180.0,0.3038423]
[1754498437215,1.06617364,115190.0,115180.0,0.3038423]
[1754498437507,1.23978394,115190.0,115180.0,0.3038423]
[1754498438508,1.06617364,115190.0,115180.0,0.3038423]
[1754498438713,1.06817364,115190.0,115180.0,0.3038423]
[1754498438914,1.24278394,115190.0,115180.0,0.3038423]
[1754498439114,1.06917364,115190.0,115180.0,0.3038423]
[1754498440010,0.68886,115190.0,115180.0,0.3038423]
[1754498440216,1.06917364,115190.0,115180.0,0.3038423]
[1754498441719,1.06917364,115190.0,115180.0,0.4299723]
[1754498449823,1.06917364,115190.0,115180.0,0.2604367]
[1754498450218,1.24278404,115190.0,115180.0,0.2604367]
[1754498450418,1.33134364,115190.0,115180.0,0.1736255]
[1754498454729,1.28793844,115190.0,115180.0,0.1736255]
[1754498459024,0.2122454,115180.0,115170.0,0.39398968]
[1754498459224,0.63376904,115180.0,115170.0,0.41201968]
[1754498460131,0.46014364,115180.0,115170.0,0.41201968]
[1754498460331,0.63476904,115180.0,115170.0,0.2170383]
[1754498460526,0.67818684,115180.0,115170.0,0.1736405]
[1754498460726,0.72159624,115180.0,115170.0,0.1736405]
[1754498463738,1.32711624,115180.0,115170.0,0.1736405]
[1754498464034,1.28370684,115180.0,115170.0,0.1736405]
[1754498465338,0.68635,115180.0,115170.0,0.1736405]
[1754498465531,1.06666364,115180.0,115170.0,0.2997705]
[1754498465931,1.24028914,115180.0,115170.0,0.2997705]
[1754498466625,1.06666364,115180.0,115170.0,0.2997705]
[1754498466827,0.68635,115180.0,115170.0,0.2997705]
[1754498467027,1.06666364,115180.0,115170.0,0.2997705]
[1754498467339,0.68635,115180.0,115170.0,0.2997705]
[1754498467540,1.06666364,115180.0,115170.0,0.2997705]
[1754498468643,1.24028914,115180.0,115170.0,0.2997705]
[1754498470941,1.06666364,115180.0,115170.0,0.2997705]
[1754498471142,1.24028904,115180.0,115170.0,0.2997705]
[1754498475243,0.8599754,115180.0,115170.0,0.2997705]
[1754498475443,1.06666364,115180.0,115170.0,0.2997705]
[1754498478946,1.24028924,115180.0,115170.0,0.2997705]
[1754498480450,1.06666364,115180.0,115170.0,0.2997705]
[1754498482349,0.46114364,115180.0,115170.0,0.2997705]
[1754498482554,0.62199,115180.0,115170.0,0.2976905]
[1754498482948,1.04054364,115180.0,115170.0,0.2976905]
[1754498483949,1.21416914,115180.0,115170.0,0.1857405]